Workbook

Sheet Sheet1
B1: Enkel de gele cellen aanpassen
B3: JE INKOMSTEN BEREKENEN VANAF DE TOTAALPRIJS VOOR DE CONSUMENT
D5: BTW 21 % | F5: BTW 6 % | H5: Geen BTW**
B6: Totaalprijs voor de Consument (incl. BTW) | D6: 121 | F6: 106 | H6: 100
B7: BTW | D7: =D6-D8 -> 21 | F7: =F6-F8 -> 6 | H7: =H6-H8 -> 0
B8: Prijs zonder belastingen (excl. BTW) | D8: =D6/1.21 -> 100 | F8: =F6/1.06 -> 100 | H8: =H6 -> 100
B9: Vergoeding Buurderij-Verantwoordelijke (excl. BTW) | D9: =D8*0.0835 -> 8.35 | F9: =F8*0.0835 -> 8.35 | H9: =H8*0.0835 -> 8.35 | L9: =F9/F8 -> 0.0835
B10: Vergoeding Boeren & Buren (excl. BTW) | D10: =D8*0.1165 -> 11.65 | F10: =F8*0.1165 -> 11.65 | H10: =H8*0.1165 -> 11.65 | L10: =F10/F8 -> 0.1165
B11: Je inkomsten na belastingen | D11: =D8-D9-D10 -> 80 | F11: =F8-F9-F10 -> 80 | H11: =H8-H9-H10 -> 80 | L11: BTW verschil producent | M11: =F13-F14 -> 3.5535
L12: Totaal producent | M12: =F11+M11 -> 83.5535
B13: Geïnde BTW | D13: =D7 -> 21 | F13: =F7 -> 6 | H13: =H7 -> 0 | L13: Percentage | M13: =M12/F6 -> 0.788240566
B14: Gefactureerde of te liquideren BTW door de Buurderij-Verantwoordelijke en/of Boeren & Buren* | D14: =D10*0.21 -> 2.4465 | F14: =F10*0.21 -> 2.4465 | H14: =H10*0.21 -> 2.4465 | M14: =F14/F8 -> 0.024465
C15: of | D15: =D14+D9*0.21 -> 4.2 | F15: =F14+F9*0.21 -> 4.2 | H15: =H14+H9*0.21 -> 4.2 | M15: =F15/F8 -> 0.042
B17: Wat op je rekening wordt gestort | D17: =D6-D9-D10-D15 -> 96.8 | F17: =F6-F9-F10-F15 -> 81.8 | H17: =H6-H9-H10-H15 -> 75.8
C18: of | D18: =D6-D9-D10-D14 -> 98.5535 | F18: =F6-F9-F10-F14 -> 83.5535 | H18: =H6-H9-H10-H14 -> 77.5535 | L18: =F18/F6 -> 0.788240566 | M18: Percentage voor producent
F19: =F8-F9-F10+F13-F15 -> 81.8
F20: =F8-F9-F10+F13-F14 -> 83.5535
B21: DE PRIJS VOOR DE CONSUMENT BEREKENEN OP BASIS VAN JE INKOMSTEN NA BELASTINGEN
D23: BTW | F23: BTW | H23: Geen BTW**
D24: 0.21 | F24: 0.06 | H24: 0
B25: Je inkomsten na belastingen | D25: =D11 -> 80 | F25: 80 | H25: 80 | L25: =F25/F28 -> 0.8
B26: Vergoeding Buurderij-Verantwoordelijke (excl. BTW) | C26: 0.0835 | D26: =D28*$C$26 -> 8.35 | F26: =F28*$C$26 -> 8.35 | H26: =H28*$C$26 -> 8.35 | L26: =F26/F28 -> 0.0835
B27: Vergoeding Boeren & Buren (excl. BTW) | C27: 0.1165 | D27: =D28*$C$27 -> 11.65 | F27: =F28*$C$27 -> 11.65 | H27: =H28*$C$27 -> 11.65 | L27: =F27/F28 -> 0.1165
B28: Prijs zonder belastingen (excl. BTW) | D28: =D25/(1-($C$26+$C$27)) -> 100 | F28: =F25/(1-($C$26+$C$27)) -> 100 | H28: =H25/(1-($C$26+$C$27)) -> 100
B29: BTW | D29: =D28*D24 -> 21 | F29: =F28*F24 -> 6 | H29: =H28*H24 -> 0
B30: Totaalprijs voor de Consument (incl. BTW) | D30: =D28*(1+D24) -> 121 | F30: =F28*(1+F24) -> 106 | H30: =H28*(1+H24) -> 100
B32: Geïnde BTW | D32: =D29 -> 21 | F32: =F29 -> 6 | H32: =H29 -> 0
B33: Gefactureerde of te liquideren BTW door de Buurderij-Verantwoordelijke en/of Boeren & Buren* | D33: =D27*0.21 -> 2.4465 | F33: =F27*0.21 -> 2.4465 | H33: =H27*0.21 -> 2.4465
C34: of | D34: =D33+D26*0.21 -> 4.2 | F34: =F33+0.21*F26 -> 4.2 | H34: =H33+0.21*H26 -> 4.2
B36: Wat op je rekening wordt gestort | D36: =D30-D27-D26-D34 -> 96.8 | F36: =F30-F27-F26-F34 -> 81.8 | H36: =H30-H27-H26-H34 -> 75.8
C37: of | D37: =D30-D27-D26-D33 -> 98.5535 | F37: =F30-F27-F26-F33 -> 83.5535 | H37: =H30-H27-H26-H33 -> 77.5535
B39: * De BTW wordt gefactureerd als je Buurderij-Verantwoordelijke een Belgische onderneming heeft die BTW-plichtig is (tarief van 21 % op de vergoeding voor diensten). De vergoeding van de diensten aangeboden door Boeren & Buren worden gefactureerd door Equanum BVBA, die BTW-plichtig is. Houd er rekening mee dat een groot deel van de Buurderij-Verantwoordelijken geen BTW factureren.
B40: ** Als je niet BTW-plichtig bent, zal je de gefactureerde BTW door de Buurderij-Verantwoordelijke en/of Boeren & Buren niet kunnen inbrengen. Gelieve hier rekening mee te houden tijdens het berekenen van je marges.
